bitfinex-derivatives/quotes_BTCF0:USTF0_20241221
["timestamp","ask_amount","ask_price","bid_price","bid_amount"]
[1734816053039,0.01152256,97144.0,97143.0,0.05503199]
[1734816053846,0.001,97144.0,97143.0,0.05503199]
[1734816055060,0.15189222,97153.0,97152.0,0.051483]
[1734816055253,0.15189222,97153.0,97152.0,0.412283]
[1734816055455,0.15189222,97162.0,97160.0,0.051479]
[1734816055648,0.15189222,97162.0,97161.0,0.3608]
[1734816056668,0.00013049,97164.0,97162.0,0.051478]
[1734816058260,0.00013049,97164.0,97163.0,0.067]
[1734816058456,0.01046063,97180.0,97163.0,0.067]
[1734816058660,0.15189222,97185.0,97182.0,0.051467]
[1734816058957,0.0325,97194.0,97182.0,0.051467]
[1734816058958,0.15189222,97187.0,97182.0,0.051467]
[1734816059552,9.882e-05,97183.0,97182.0,0.051467]
[1734816061960,0.00509882,97183.0,97182.0,0.051467]
[1734816062463,0.01409882,97183.0,97182.0,0.051467]
[1734816062665,0.051481,97156.0,97143.0,0.36234399]
[1734816063053,0.07736019,97156.0,97147.0,0.36836624]
[1734816063466,0.03637591,97156.0,97147.0,0.41985124]
[1734816063662,0.03637591,97156.0,97147.0,0.42073124]
[1734816063964,0.03737591,97156.0,97155.0,0.309379]
[1734816064354,0.03737591,97156.0,97155.0,0.001]
[1734816064355,0.03637591,97156.0,97155.0,0.001]
[1734816064752,0.02587919,97156.0,97155.0,0.04812897]
[1734816064955,0.01043919,97156.0,97155.0,0.04812897]
[1734816065863,0.001,97156.0,97155.0,0.09961097]
[1734816069471,0.001,97156.0,97155.0,0.04812897]
[1734816069766,0.001,97156.0,97155.0,0.001]
[1734816070159,0.02687919,97156.0,97155.0,0.001]
[1734816071562,0.14871441,97156.0,97155.0,0.001]
[1734816073170,0.02687919,97156.0,97155.0,0.001]
[1734816073863,0.01963055,97156.0,97155.0,0.09961097]
[1734816074067,0.01143919,97156.0,97155.0,0.09827492]
[1734816074377,0.001,97156.0,97155.0,0.09827492]
[1734816074569,0.12278834,97156.0,97155.0,0.09827492]
[1734816075869,0.001,97156.0,97155.0,0.09827492]
[1734816077578,0.01853641,97186.0,97171.0,0.051473]
[1734816077579,0.12178834,97172.0,97171.0,0.051473]
[1734816077777,0.12178834,97172.0,97171.0,0.45940197]
[1734816078272,0.07188834,97172.0,97171.0,0.45940197]
[1734816078575,0.07188834,97172.0,97171.0,0.82020197]
[1734816078761,0.07588834,97172.0,97171.0,0.82020197]
[1734816078959,0.08288834,97172.0,97171.0,0.82020197]
[1734816079182,0.011,97172.0,97171.0,0.82020197]
[1734816079762,0.011,97172.0,97171.0,0.45940197]
[1734816079969,0.009,97172.0,97171.0,0.45940197]
[1734816080578,0.008,97172.0,97171.0,0.45940197]
[1734816083278,0.051475,97168.0,97158.0,0.3608]
[1734816083477,0.051475,97168.0,97165.0,0.04712897]
[1734816084268,0.0315,97171.0,97165.0,0.04712897]
[1734816084468,0.053475,97168.0,97165.0,0.04712897]
[1734816084664,0.053475,97168.0,97166.0,0.04712897]
[1734816084967,0.056475,97168.0,97166.0,0.04712897]
[1734816085384,0.053475,97168.0,97166.0,0.04712897]
[1734816085875,0.3608,97167.0,97166.0,0.04712897]
[1734816087581,0.3608,97167.0,97163.0,0.03566898]
[1734816087765,0.3658,97167.0,97149.0,0.051485]
[1734816087967,0.005,97167.0,97166.0,0.051476]
[1734816088175,0.01025399,97189.0,97177.0,0.05147]
[1734816088374,0.24304911,97195.0,97182.0,0.051467]
[1734816088375,0.18236949,97183.0,97182.0,0.051467]
[1734816089472,0.19136949,97183.0,97182.0,0.051467]
[1734816089670,0.00909882,97183.0,97182.0,0.051467]
[1734816090578,0.00909882,97183.0,97182.0,0.053467]
[1734816091582,0.00822212,97203.0,97202.0,0.051457]
[1734816093183,0.01122212,97203.0,97202.0,0.051457]
[1734816094284,0.01322212,97203.0,97202.0,0.051457]
[1734816094981,0.005,97203.0,97202.0,0.051457]
[1734816098288,0.005,97203.0,97202.0,0.412257]
[1734816099884,0.08277,97222.0,97221.0,0.051447]
[1734816100675,0.08277,97222.0,97215.0,0.3608]
[1734816100881,0.051448,97219.0,97215.0,0.3608]
[1734816101088,0.0323,97221.0,97215.0,0.3608]
[1734816101376,0.09177,97222.0,97218.0,0.051448]
[1734816101580,0.09777,97222.0,97221.0,0.051447]
[1734816103584,0.09177,97222.0,97221.0,0.051447]
[1734816103788,0.09177,97222.0,97221.0,0.052447]
[1734816104592,0.09677,97222.0,97221.0,0.053447]
[1734816107592,0.09177,97222.0,97221.0,0.052447]
[1734816107797,0.08277,97222.0,97221.0,0.051447]
[1734816107989,0.08277,97222.0,97221.0,0.053447]
[1734816108389,0.3608,97248.0,97233.0,0.05144]
[1734816108603,0.3608,97248.0,97247.0,0.051433]
[1734816110411,0.005,97248.0,97247.0,0.052433]
[1734816110807,0.056432,97248.0,97247.0,0.001]
[1734816111506,0.065432,97248.0,97247.0,0.002]
[1734816113006,0.065432,97248.0,97227.0,0.00154265]
[1734816113007,0.065432,97248.0,97246.0,0.051433]
[1734816113404,0.0304,97247.0,97246.0,0.051433]
[1734816114119,0.081833,97247.0,97246.0,0.002]
[1734816114604,0.051436,97242.0,97240.0,0.051437]
[1734816114805,0.3608,97241.0,97240.0,0.051437]
[1734816116706,0.3678,97241.0,97240.0,0.052437]
[1734816117019,0.3718,97241.0,97240.0,0.052437]
[1734816117421,0.38201596,97241.0,97240.0,0.052437]
[1734816117719,0.38203635,97241.0,97240.0,0.052437]
[1734816119121,0.38203635,97241.0,97240.0,0.001]
[1734816119604,0.3718,97241.0,97240.0,0.001]
[1734816119810,0.38204371,97241.0,97240.0,0.001]
[1734816120411,0.43584522,97241.0,97240.0,0.001]
[1734816121312,0.051443,97228.0,97227.0,0.05298565]
[1734816121514,0.42248671,97228.0,97227.0,0.00154265]
[1734816121822,0.43073022,97228.0,97227.0,0.00154265]
[1734816122019,0.37928722,97228.0,97219.0,0.051447]
[1734816122210,0.3608,97220.0,97219.0,0.051447]
[1734816122405,0.37104371,97220.0,97219.0,0.051447]
[1734816122619,0.37109919,97220.0,97202.0,0.0321]
[1734816122810,0.412253,97210.0,97206.0,0.051454]
[1734816123122,0.01029919,97209.0,97207.0,0.051454]
[1734816123312,0.01029919,97208.0,97207.0,0.051454]
[1734816123913,0.01029919,97219.0,97218.0,0.051448]
[1734816126015,0.01029919,97219.0,97218.0,0.052448]
[1734816126321,0.06174719,97219.0,97218.0,0.005]
[1734816127024,0.06997938,97219.0,97218.0,0.005]
[1734816127214,0.43077938,97219.0,97218.0,0.005]
[1734816129914,0.43077938,97219.0,97218.0,0.056448]
[1734816129915,0.37109919,97219.0,97218.0,0.056448]
[1734816131329,0.37108354,97219.0,97218.0,0.056448]
[1734816132221,0.3608,97219.0,97218.0,0.056448]
[1734816132420,0.38134952,97219.0,97218.0,0.056448]
[1734816132621,0.38135035,97219.0,97218.0,0.056448]
[1734816133113,0.38135385,97219.0,97218.0,0.056448]
[1734816133318,0.38135385,97219.0,97217.0,0.051449]
[1734816133521,0.37107476,97219.0,97217.0,0.051449]
[1734816134826,0.37107476,97219.0,97217.0,0.052449]
[1734816135317,0.3608,97219.0,97217.0,0.052449]
[1734816135718,0.3608,97219.0,97217.0,0.056449]
[1734816136018,0.01027909,97218.0,97217.0,0.056449]
[1734816136213,0.3608,97219.0,97217.0,0.056449]
[1734816136413,0.09155217,97218.0,97217.0,0.056449]
[1734816137121,0.15260051,97228.0,97227.0,0.051444]
[1734816137326,0.15260051,97228.0,97227.0,0.412244]
[1734816138426,0.051434,97246.0,97235.0,0.051439]
[1734816138619,0.3608,97243.0,97227.0,0.3608]
[1734816138822,0.3608,97243.0,97228.0,0.033]
[1734816139221,0.3608,97243.0,97242.0,0.051436]
[1734816140022,0.3698,97243.0,97242.0,0.051436]
[1734816140421,0.3608,97243.0,97242.0,0.052436]
[1734816140620,0.009,97243.0,97242.0,0.052436]
[1734816141422,0.014,97243.0,97242.0,0.052436]
[1734816143129,0.00154296,97248.0,97242.0,0.001]
[1734816143330,0.00154296,97248.0,97247.0,0.051433]
[1734816143731,0.12209306,97260.0,97259.0,0.051427]
[1734816143941,0.12209306,97260.0,97259.0,0.412227]
[1734816144242,0.12209306,97260.0,97259.0,0.051427]
[1734816144629,0.18520051,97265.0,97251.0,0.3608]
[1734816144630,0.0326,97265.0,97251.0,0.3608]
[1734816144837,0.0326,97265.0,97263.0,0.051424]
[1734816146237,0.0416,97265.0,97263.0,0.001]
[1734816146439,0.051431,97252.0,97242.0,0.051435]
[1734816146638,0.3608,97250.0,97243.0,0.051435]
[1734816146840,0.051432,97249.0,97243.0,0.051435]
[1734816148038,0.053432,97249.0,97243.0,0.051435]
[1734816148340,0.051434,97245.0,97228.0,0.3608]
[1734816148542,0.3608,97241.0,97228.0,0.3608]
[1734816148746,0.3608,97241.0,97239.0,0.051437]
[1734816149639,0.0316,97240.0,97239.0,0.051437]
[1734816150345,0.0316,97240.0,97218.0,0.0303]
[1734816150550,0.051437,97239.0,97218.0,0.0303]
[1734816150743,0.3608,97233.0,97215.0,0.39340275]
[1734816151047,0.3608,97233.0,97215.0,0.36234275]
[1734816151537,0.3608,97223.0,97222.0,0.051446]
[1734816151736,0.051448,97220.0,97215.0,0.05299275]
[1734816152042,0.032,97219.0,97215.0,0.05699275]
[1734816152245,0.032,97219.0,97215.0,0.05799275]
[1734816152740,0.032,97219.0,97215.0,0.05699275]
[1734816152946,0.032,97219.0,97215.0,0.06199275]
[1734816153540,0.032,97219.0,97215.0,0.05999275]
[1734816154446,0.032,97219.0,97215.0,0.00854275]
[1734816154647,0.051449,97217.0,97215.0,0.00854275]
[1734816155843,0.052449,97217.0,97215.0,0.01054275]
[1734816156440,0.052449,97217.0,97215.0,0.00854275]
[1734816156643,0.052449,97217.0,97215.0,0.01054275]
[1734816157347,0.001,97217.0,97216.0,0.051449]
[1734816158346,0.04234856,97219.0,97216.0,0.051449]
[1734816158544,0.001,97217.0,97216.0,0.057449]
[1734816159349,0.001,97217.0,97216.0,0.059449]
[1734816160545,0.032,97219.0,97218.0,0.051448]
[1734816161642,0.3608,97223.0,97221.0,0.051447]
[1734816164149,0.3608,97223.0,97221.0,0.052447]
[1734816166246,0.3608,97223.0,97221.0,0.001]
[1734816166651,0.3608,97223.0,97221.0,0.052446]
[1734816170359,0.3608,97232.0,97221.0,0.052446]
[1734816170556,0.3608,97232.0,97231.0,0.051441]
[1734816171360,0.3628,97232.0,97231.0,0.051441]
[1734816171660,0.3658,97232.0,97231.0,0.051441]
[1734816173472,0.37295436,97232.0,97231.0,0.051441]
[1734816173679,0.37495436,97232.0,97231.0,0.051441]
[1734816173863,0.37395436,97232.0,97231.0,0.051441]
[1734816174068,0.37295436,97232.0,97231.0,0.051441]
[1734816174672,0.38122628,97232.0,97218.0,0.3608]
[1734816174872,0.051444,97227.0,97222.0,0.051446]
[1734816175067,0.05382628,97226.0,97222.0,0.051446]
[1734816175262,0.01841987,97225.0,97218.0,0.3608]
[1734816175477,0.051447,97222.0,97215.0,0.00154275]
[1734816175672,0.01015436,97221.0,97216.0,0.051449]
[1734816175867,0.01015436,97220.0,97216.0,0.051449]
[1734816176068,0.01015436,97219.0,97216.0,0.051449]
[1734816176272,0.01015436,97218.0,97216.0,0.051449]
[1734816176474,0.01015436,97217.0,97216.0,0.051449]
[1734816176675,0.01015436,97221.0,97218.0,0.002]
[1734816176874,0.01015436,97220.0,97218.0,0.002]
[1734816177074,0.01015436,97219.0,97218.0,0.002]
[1734816177280,0.01015436,97219.0,97218.0,0.053448]
[1734816177471,0.01015436,97219.0,97218.0,0.051448]
[1734816177868,0.01015436,97220.0,97218.0,0.058448]
[1734816178178,0.01021068,97220.0,97218.0,0.007]
[1734816178379,0.01021068,97219.0,97218.0,0.004]
[1734816178578,0.01021068,97219.0,97218.0,0.055448]
[1734816179985,0.01021068,97219.0,97218.0,0.056448]
[1734816180876,0.01020707,97219.0,97218.0,0.056448]
[1734816181380,0.01020708,97219.0,97218.0,0.056448]
[1734816181780,0.13230014,97219.0,97218.0,0.056448]
[1734816182084,0.12209306,97219.0,97218.0,0.056448]
[1734816182265,0.13230014,97219.0,97218.0,0.056448]
[1734816182470,0.13230014,97219.0,97218.0,0.005]
[1734816183376,0.14058282,97219.0,97218.0,0.005]
[1734816184279,0.05338976,97219.0,97218.0,0.005]
[1734816184882,0.01020708,97219.0,97209.0,0.12193129]
[1734816185084,0.01020708,97218.0,97217.0,0.051449]
[1734816186491,0.01020708,97218.0,97209.0,0.054453]
[1734816186778,0.05145,97215.0,97210.0,0.051452]
[1734816186984,0.01020708,97214.0,97210.0,0.051452]
[1734816187183,0.01020708,97213.0,97210.0,0.051452]
[1734816187377,0.01020708,97212.0,97210.0,0.051452]
[1734816187569,0.01020708,97211.0,97210.0,0.051452]
[1734816187774,0.12235896,97215.0,97212.0,0.051451]
[1734816187975,0.01023766,97214.0,97212.0,0.051451]
[1734816188175,0.01023766,97213.0,97212.0,0.051451]
[1734816190177,0.01123766,97213.0,97212.0,0.059451]
[1734816190386,0.01123766,97213.0,97212.0,0.062451]
[1734816191876,0.001,97213.0,97212.0,0.423251]
[1734816195175,0.001,97213.0,97212.0,0.46139417]
[1734816195980,0.12235896,97225.0,97224.0,0.051445]
[1734816196783,0.12235896,97228.0,97227.0,0.051444]
[1734816198792,0.001,97228.0,97226.0,0.051444]
[1734816199089,0.002,97228.0,97227.0,0.04413156]
[1734816199398,0.001,97228.0,97227.0,0.006]
[1734816199580,0.001,97228.0,97227.0,0.008]
[1734816200283,0.001,97228.0,97227.0,0.0427]
[1734816200680,0.001,97228.0,97227.0,0.08081173]
[1734816200896,0.001,97228.0,97227.0,0.0427]
[1734816201076,0.001,97228.0,97227.0,0.008]
[1734816205077,0.3618,97228.0,97227.0,0.008]
[1734816205490,0.001,97228.0,97227.0,0.008]
[1734816209984,0.001,97228.0,97227.0,0.3688]
[1734816211495,0.001,97228.0,97227.0,0.008]
[1734816218785,0.01014178,97239.0,97238.0,0.051438]
[1734816218990,0.12235896,97240.0,97238.0,0.051438]
[1734816219590,0.12235896,97241.0,97240.0,0.051437]
[1734816220195,0.06925896,97241.0,97240.0,0.051437]
[1734816220392,0.15260051,97250.0,97249.0,0.051432]
[1734816220588,0.0347,97266.0,97257.0,0.051428]
[1734816220794,0.0347,97266.0,97257.0,0.412228]
[1734816221404,0.0347,97266.0,97265.0,0.051423]
[1734816222503,0.0387,97266.0,97265.0,0.051423]
[1734816223589,0.0417,97266.0,97265.0,0.051423]
[1734816225606,0.0417,97266.0,97257.0,0.54188009]
[1734816225905,0.051436,97242.0,97241.0,0.37004298]
[1734816226090,0.051436,97242.0,97216.0,0.3608]
[1734816226091,0.73996083,97242.0,97216.0,0.3608]
[1734816226291,0.3608,97228.0,97216.0,0.3608]
[1734816226496,0.3608,97228.0,97216.0,0.412249]
[1734816226695,0.3608,97228.0,97216.0,0.412969]
[1734816227991,0.3608,97228.0,97218.0,0.01054273]
[1734816228191,0.3618,97228.0,97218.0,0.01754273]
[1734816228406,0.051444,97226.0,97218.0,0.00854273]
[1734816228606,0.051444,97226.0,97218.0,0.01754273]
[1734816228796,0.0351,97225.0,97218.0,0.01754273]
[1734816229307,0.3608,97219.0,97218.0,0.01754273]
[1734816230091,0.3608,97219.0,97218.0,0.01054273]
[1734816230295,0.3608,97219.0,97218.0,0.01354273]
[1734816230701,0.412248,97219.0,97210.0,0.051452]
[1734816230902,0.3608,97219.0,97201.0,0.01006199]
[1734816231204,0.413248,97219.0,97218.0,0.012]
[1734816231402,0.051451,97212.0,97199.0,0.3608]
[1734816231607,0.051451,97212.0,97207.0,0.051454]
[1734816231796,0.051451,97212.0,97211.0,0.0066]
[1734816232001,0.36340001,97219.0,97211.0,0.0066]
[1734816232198,0.051451,97213.0,97211.0,0.0156]
[1734816232806,0.001,97212.0,97211.0,0.0156]
[1734816233403,0.002,97212.0,97211.0,0.0136]
[1734816234210,0.001,97212.0,97211.0,0.0046]
[1734816234907,0.002,97212.0,97211.0,0.0046]
[1734816235811,0.002,97212.0,97211.0,0.056052]
[1734816237218,0.3618,97212.0,97211.0,0.055052]
[1734816238008,0.3618,97212.0,97211.0,0.0036]
[1734816238332,0.051455,97206.0,97205.0,0.00011056]
[1734816238620,0.051462,97192.0,97180.0,0.051468]
[1734816238913,0.412262,97192.0,97182.0,0.051467]
[1734816239513,0.41235634,97192.0,97182.0,0.051467]
[1734816240215,0.41235634,97192.0,97191.0,0.00254331]
[1734816240918,0.41235634,97192.0,97191.0,0.00032818]
[1734816245414,0.36089434,97192.0,97191.0,0.00032818]
[1734816245806,0.36089434,97192.0,97191.0,0.03342818]
[1734816246010,9.434e-05,97192.0,97191.0,0.03342818]
[1734816249222,9.434e-05,97192.0,97191.0,0.04380612]
[1734816250115,0.3608,97220.0,97191.0,0.34380612]
[1734816250427,0.00052001,97228.0,97226.0,0.051444]
[1734816250613,0.00154334,97240.0,97233.0,0.05144]
[1734816251012,4.386e-05,97239.0,97233.0,0.05144]
[1734816252911,0.00904386,97239.0,97233.0,0.05144]
[1734816253321,0.01804386,97239.0,97233.0,0.05144]
[1734816253728,0.01804386,97239.0,97235.0,0.051439]
[1734816253920,0.01804386,97239.0,97227.0,0.3608]
[1734816253921,0.01804386,97239.0,97237.0,0.051438]
[1734816254723,0.01504386,97239.0,97237.0,0.051438]
[1734816255220,0.00904386,97239.0,97238.0,0.3608]
[1734816255422,0.01304386,97239.0,97238.0,0.3608]
[1734816255617,0.01304386,97239.0,97238.0,0.3944]
[1734816259719,0.01304386,97239.0,97238.0,0.3608]
[1734816263819,0.01304386,97239.0,97238.0,0.3929]
[1734816265225,0.0911504,97268.0,97240.0,0.051436]
[1734816265426,0.0911504,97268.0,97263.0,0.051425]
[1734816266328,0.15158169,97278.0,97263.0,0.051425]
[1734816266533,0.01041153,97279.0,97263.0,0.051425]
[1734816267123,0.00754263,97264.0,97263.0,0.051425]
[1734816267321,0.006,97264.0,97263.0,0.051425]
[1734816267526,0.009,97264.0,97263.0,0.051425]
[1734816268316,0.008,97264.0,97263.0,0.051425]
[1734816271325,0.0911504,97283.0,97282.0,0.051415]
[1734816271529,0.0911504,97283.0,97282.0,0.412215]
[1734816272116,0.3608,97294.0,97290.0,0.05141]
[1734816272329,0.3608,97294.0,97272.0,0.3608]
[1734816272529,0.412209,97294.0,97283.0,0.051414]
[1734816272827,0.3608,97294.0,97283.0,0.051414]
[1734816273530,0.051409,97292.0,97285.0,0.051413]
[1734816273727,0.051409,97292.0,97285.0,0.051412]
[1734816274031,0.004,97283.0,97270.0,0.00154195]
[1734816274329,0.004,97283.0,97282.0,0.051415]
[1734816274721,0.3608,97286.0,97270.0,0.00154195]
[1734816274933,0.3608,97286.0,97271.0,0.05142]
[1734816275117,0.3608,97286.0,97280.0,0.051415]
[1734816275324,0.3608,97286.0,97270.0,0.00154195]
[1734816275633,0.002,97283.0,97281.0,0.051415]
[1734816276530,0.0931504,97283.0,97281.0,0.051415]
[1734816276836,0.0971504,97283.0,97275.0,0.25795018]
[1734816277027,0.0971504,97283.0,97281.0,0.051415]
[1734816277223,0.0951504,97283.0,97281.0,0.051415]
[1734816278134,0.0971504,97283.0,97281.0,0.051415]
[1734816278331,0.006,97283.0,97281.0,0.051415]
[1734816280933,0.12774635,97283.0,97281.0,0.051415]
[1734816281140,0.12774635,97283.0,97277.0,0.051417]
[1734816281141,0.17916035,97283.0,97277.0,0.051417]
[1734816281334,0.051415,97282.0,97270.0,0.00154195]
[1734816281632,0.3608,97278.0,97277.0,0.051417]
[1734816283134,0.37277476,97278.0,97277.0,0.051417]
[1734816283437,0.40597476,97278.0,97277.0,0.051417]
[1734816283629,0.40797476,97278.0,97277.0,0.051417]
[1734816283830,0.407993,97278.0,97277.0,0.051417]
[1734816284031,0.409993,97278.0,97277.0,0.051417]
[1734816284339,0.4,97278.0,97277.0,0.051417]
[1734816284555,0.55158169,97278.0,97277.0,0.051417]
[1734816285136,0.55158169,97278.0,97270.0,0.00154195]
[1734816285336,0.051419,97274.0,97273.0,0.051418]
[1734816286642,0.06141488,97274.0,97273.0,0.051418]
[1734816286944,0.11792531,97274.0,97273.0,0.051418]
[1734816287442,0.12092531,97274.0,97273.0,0.051418]
[1734816288033,0.12192531,97274.0,97273.0,0.051418]
[1734816288634,0.13022996,97274.0,97273.0,0.051418]
[1734816289645,0.12822996,97274.0,97273.0,0.051418]
[1734816289940,0.05142,97271.0,97270.0,0.05296295]
[1734816290341,0.06141588,97271.0,97270.0,0.05296295]
[1734816290542,0.06146907,97271.0,97270.0,0.05296295]
[1734816291037,0.06146972,97271.0,97270.0,0.05296295]
[1734816291241,0.11798015,97271.0,97270.0,0.05296295]
[1734816291733,0.11898015,97271.0,97270.0,0.05296295]
[1734816292044,0.12728475,97271.0,97270.0,0.05296295]
[1734816292745,0.051424,97264.0,97263.0,0.051424]
[1734816292948,0.06978535,97264.0,97263.0,0.051424]
[1734816293531,0.06980679,97264.0,97263.0,0.051424]
[1734816293942,0.01838279,97264.0,97263.0,0.051424]
[1734816294346,0.01938279,97264.0,97263.0,0.051424]
[1734816294547,0.07589322,97264.0,97263.0,0.051424]
[1734816295738,0.07689322,97264.0,97263.0,0.051424]
[1734816296544,0.07789322,97264.0,97263.0,0.051424]
[1734816297332,0.07689322,97264.0,97263.0,0.051424]
[1734816297747,0.07689322,97264.0,97257.0,0.412227]
[1734816297947,0.01838279,97263.0,97261.0,0.051425]
[1734816298141,0.01838279,97262.0,97261.0,0.051425]
[1734816298333,0.05851043,97264.0,97258.0,0.0328]
[1734816298539,0.05851043,97264.0,97263.0,0.051425]
[1734816299058,0.00551043,97264.0,97263.0,0.08955935]
[1734816299263,0.18312061,97268.0,97267.0,0.051422]
[1734816299545,0.18312061,97268.0,97267.0,0.412222]
[1734816299950,0.12226653,97270.0,97269.0,0.051421]
[1734816301043,0.12226653,97271.0,97269.0,0.051421]
[1734816302141,0.12226653,97273.0,97269.0,0.001]
[1734816302343,0.12226653,97273.0,97272.0,0.05142]
[1734816302534,0.12226653,97273.0,97269.0,0.001]
[1734816302535,0.48306653,97273.0,97269.0,0.001]
[1734816302741,0.051421,97270.0,97269.0,0.001]
[1734816302939,0.051421,97270.0,97269.0,0.002]
[1734816303247,0.05976267,97270.0,97269.0,0.001]
[1734816303449,0.07001547,97270.0,97269.0,0.001]
[1734816303647,0.07001547,97270.0,97257.0,0.3608]
[1734816303648,0.051424,97264.0,97257.0,0.3608]
[1734816303843,0.3608,97262.0,97254.0,0.051429]
[1734816304039,0.0102528,97261.0,97247.0,0.0337]
[1734816304245,0.0102528,97260.0,97259.0,0.051427]
[1734816304553,0.0102528,97261.0,97259.0,0.051427]
[1734816305144,0.0102528,97260.0,97259.0,0.051427]
[1734816305351,0.0102528,97261.0,97259.0,0.051427]
[1734816305550,0.3608,97262.0,97259.0,0.051427]
[1734816305750,0.3608,97262.0,97259.0,0.053427]
[1734816306142,0.3710528,97262.0,97259.0,0.053427]
[1734816306347,0.3608,97262.0,97259.0,0.052427]
[1734816306647,0.0102528,97261.0,97259.0,0.052427]
[1734816306854,0.0102528,97260.0,97259.0,0.052427]
[1734816307148,0.01024774,97260.0,97259.0,0.052427]
[1734816308250,0.01024774,97260.0,97259.0,0.051427]
[1734816308844,0.01224774,97260.0,97259.0,0.051427]
[1734816309044,0.01324774,97260.0,97259.0,0.051427]
[1734816309651,0.01224774,97260.0,97259.0,0.051427]
[1734816309852,0.01324774,97260.0,97259.0,0.051427]
[1734816310662,0.003,97260.0,97259.0,0.051427]
[1734816310846,0.013277,97260.0,97259.0,0.051427]
[1734816311154,0.02161867,97260.0,97259.0,0.051427]
[1734816311953,0.17445141,97260.0,97259.0,0.051427]
[1734816313160,0.16610974,97260.0,97259.0,0.051427]
[1734816313452,0.02159727,97260.0,97259.0,0.051427]
[1734816313656,0.003,97260.0,97259.0,0.051427]
[1734816314761,0.001,97260.0,97259.0,0.051427]
[1734816314951,0.03940787,97261.0,97259.0,0.06393594]
[1734816315151,0.03940787,97261.0,97260.0,0.0695]
[1734816315864,0.12227716,97274.0,97272.0,0.05142]
[1734816317051,0.37100801,97273.0,97272.0,0.05142]
[1734816317358,0.37200801,97273.0,97272.0,0.05142]
[1734816317545,0.3618,97273.0,97272.0,0.05142]
[1734816317750,0.37200801,97273.0,97272.0,0.05142]
[1734816317955,0.3618,97273.0,97272.0,0.05142]
[1734816318259,0.49528517,97273.0,97272.0,0.05142]
[1734816318461,0.48507716,97273.0,97272.0,0.05142]
[1734816319269,0.48407716,97273.0,97272.0,0.05142]
[1734816319459,0.3618,97273.0,97272.0,0.05142]
[1734816321569,0.37202936,97273.0,97272.0,0.05142]
[1734816321755,0.37202936,97273.0,97262.0,0.3608]
[1734816321963,0.051421,97271.0,97265.0,0.051423]
[1734816322162,0.01857269,97270.0,97258.0,0.051427]
[1734816322456,0.3608,97265.0,97258.0,0.051427]
[1734816322661,0.0351,97264.0,97258.0,0.051427]
[1734816322862,0.04534039,97264.0,97258.0,0.051427]
[1734816323055,0.0341,97263.0,97258.0,0.051427]
[1734816323265,0.12227716,97262.0,97258.0,0.051427]
[1734816323464,0.12227716,97262.0,97258.0,0.053427]
[1734816323668,0.051427,97260.0,97258.0,0.002]
[1734816323868,0.01024039,97259.0,97258.0,0.002]
[1734816324068,0.01024039,97259.0,97258.0,0.01]
[1734816324564,0.01024039,97259.0,97258.0,0.002]
[1734816324772,0.01024039,97259.0,97258.0,0.008]
[1734816325060,0.01024039,97259.0,97258.0,0.012]
[1734816325267,0.01024039,97259.0,97258.0,0.004]
[1734816325469,0.01124039,97259.0,97258.0,0.012]
[1734816326968,0.01124039,97259.0,97253.0,0.05143]
[1734816327269,0.3608,97254.0,97253.0,0.05143]
[1734816328766,0.12222832,97255.0,97253.0,0.05243]
[1734816329665,0.12222832,97262.0,97253.0,0.05243]
[1734816329973,0.12222832,97262.0,97261.0,0.051426]
[1734816330768,0.12422832,97262.0,97261.0,0.051426]
[1734816331271,0.12222832,97262.0,97261.0,0.052426]
[1734816331464,0.12222832,97268.0,97266.0,0.051423]
[1734816331662,0.0103067,97267.0,97266.0,0.051423]
[1734816333064,0.0113067,97267.0,97266.0,0.051423]
[1734816333666,0.01130837,97267.0,97266.0,0.051423]
[1734816333864,0.01230837,97267.0,97266.0,0.051423]
[1734816334374,0.01229993,97267.0,97266.0,0.051423]
[1734816335867,0.002,97267.0,97266.0,0.051423]
[1734816336165,0.01230282,97267.0,97266.0,0.051423]
[1734816336677,0.002,97267.0,97266.0,0.051423]
[1734816336872,0.01229897,97267.0,97266.0,0.051423]
[1734816338361,0.01230363,97267.0,97266.0,0.051423]
[1734816338675,0.01032609,97267.0,97266.0,0.051423]
[1734816338878,0.01236026,97267.0,97266.0,0.051423]
[1734816340062,0.01136026,97267.0,97266.0,0.051423]
[1734816340371,0.01236026,97267.0,97266.0,0.051423]
[1734816341277,0.01235658,97267.0,97266.0,0.051423]
[1734816341664,0.01235658,97267.0,97256.0,0.2461854]
[1734816341865,0.01235658,97267.0,97239.0,0.3608]
[1734816341866,0.051433,97248.0,97219.0,0.43135015]
[1734816342078,0.412238,97238.0,97237.0,0.31726291]
[1734816342271,0.051442,97230.0,97219.0,0.43135015]
[1734816342469,0.051447,97220.0,97219.0,0.43055015]
[1734816342774,0.051452,97211.0,97210.0,0.00076]
[1734816342972,0.051457,97202.0,97198.0,0.0332]
[1734816343174,0.3608,97199.0,97198.0,0.0332]
[1734816343572,0.3608,97199.0,97198.0,0.1186854]
[1734816344270,0.3608,97199.0,97198.0,0.1276854]
[1734816345476,0.3618,97199.0,97198.0,0.006]
[1734816345673,0.3628,97199.0,97198.0,0.015]
[1734816346870,0.3628,97199.0,97198.0,0.0494]
[1734816355680,0.3618,97199.0,97198.0,0.0404]
[1734816356278,0.3618,97199.0,97198.0,0.0424]
[1734816356475,0.3608,97199.0,97198.0,0.0364]
[1734816356785,0.3628,97199.0,97198.0,0.0344]
[1734816357787,0.3608,97199.0,97198.0,0.0374]
[1734816357976,0.3608,97200.0,97198.0,0.0374]
[1734816358385,0.001,97199.0,97198.0,0.0364]
[1734816359181,0.001,97199.0,97198.0,0.0344]
[1734816359381,0.003,97199.0,97198.0,0.0344]
[1734816359776,0.3608,97200.0,97198.0,0.0344]
[1734816359985,0.002,97199.0,97198.0,0.0344]